fUSD/lending_fUSD_20250629
["ID","MTS","AMOUNT","RATE_DAILY","PERIOD"]
[368565631,1751211063797,-490.0,0.00022191,2]
[368565632,1751211063807,-490.0,0.00022191,2]
[368565633,1751211063817,-533.23,0.00022191,2]
[368565634,1751211063827,-490.0,0.00022191,2]
[368565635,1751211063837,-659.79,0.00022191,2]
[368565636,1751211063847,-1066.62,0.00022191,2]
[368565637,1751211063856,-520.84,0.00022191,2]
[368565638,1751211063866,-538.68718369,0.00022191,2]
[368565639,1751211063875,-490.0,0.00022191,2]
[368565640,1751211064052,-490.0,0.00022191,2]
[368565641,1751211064084,-214.59154495,0.00022191,2]
[368565642,1751211064093,-1232.81,0.00022191,2]
[368565643,1751211064103,-735.74,0.00022191,2]
[368565644,1751211064112,-490.0,0.00022191,2]
[368565645,1751211064122,-1597.45,0.00022191,2]
[368565646,1751211064131,-515.16,0.00022191,2]
[368565647,1751211064141,-846.18,0.00022191,2]
[368565648,1751211064150,-356.75057121,0.00022191,2]
[368565649,1751211064160,-945.83,0.00022191,2]
[368565650,1751211064169,-490.0,0.00022191,2]
[368565651,1751211064178,-490.0,0.00022191,2]
[368565652,1751211064187,-711.08,0.00022191,2]
[368565653,1751211064196,-1481.13,0.00022191,2]
[368565654,1751211064206,-1057.57,0.00022191,2]
[368565655,1751211064215,-490.0,0.00022191,2]
[368565656,1751211064224,-680.54,0.00022191,2]
[368565657,1751211064233,-490.0,0.00022191,2]
[368565658,1751211064243,-490.0,0.00022191,2]
[368565659,1751211064252,-517.19,0.00022191,2]
[368565660,1751211064262,-490.0,0.00022191,2]
[368565661,1751211064271,-2429.88,0.00022191,2]
[368565662,1751211064280,-388.31745591,0.00022191,2]
[368565663,1751211064290,-1578.8,0.00022191,2]
[368565664,1751211064299,-499.55926827,0.00022191,2]
[368565665,1751211064308,-490.0,0.00022191,2]
[368565666,1751211064317,-1288.19,0.00022191,2]
[368565667,1751211064327,-548.47,0.00022191,2]
[368565668,1751211064337,-1142.64,0.00022191,2]
[368565669,1751211064347,-2638.02,0.00022191,2]
[368565670,1751211064356,-741.36,0.00022191,2]
[368565671,1751211064365,-524.99410988,0.00022191,2]
[368565672,1751211064374,-490.0,0.00022191,2]
[368565673,1751211064384,-559.15,0.00022191,2]
[368565674,1751211064393,-490.0,0.00022191,2]
[368565675,1751211064402,-1312.55,0.00022191,2]
[368565676,1751211064411,-570.38,0.00022191,2]
[368565677,1751211064420,-490.0,0.00022191,2]
[368565678,1751211064430,-727.4,0.00022191,2]
[368565679,1751211064439,-490.0,0.00022191,2]
[368565680,1751211064449,-490.0,0.00022191,2]
[368565681,1751211064458,-1368.46,0.00022191,2]
[368565682,1751211064467,-1742.43,0.00022191,2]
[368565683,1751211064476,-490.0,0.00022191,2]
[368565684,1751211064486,-490.0,0.00022191,2]
[368565685,1751211064495,-490.0,0.00022191,2]
[368565686,1751211064506,-490.0,0.00022191,2]
[368565687,1751211064515,-490.0,0.00022191,2]
[368565688,1751211064525,-1584.15,0.00022191,2]
[368565689,1751211064534,-490.0,0.00022191,2]
[368565690,1751211064544,-945.02,0.00022191,2]
[368565691,1751211064553,-490.0,0.00022191,2]
[368565692,1751211064563,-3046.05,0.00022191,2]
[368565693,1751211064572,-1562.61,0.00022191,2]
[368565694,1751211064581,-518.16,0.00022191,2]
[368565695,1751211064591,-490.0,0.00022191,2]
[368565696,1751211064600,-490.0,0.00022191,2]
[368565697,1751211064611,-490.0,0.00022191,2]
[368565698,1751211064620,-1008.24,0.00022191,2]
[368565699,1751211064629,-1074.68,0.00022191,2]
[368565700,1751211064640,-956.11,0.00022191,2]
[368565701,1751211064649,-490.0,0.00022191,2]
[368565702,1751211064658,-491.55080129,0.00022191,2]
[368565703,1751211064668,-2675.9,0.00022191,2]
[368565704,1751211064677,-490.0,0.00022191,2]
[368565705,1751211064686,-490.0,0.00022191,2]
[368565706,1751211064696,-490.0,0.00022191,2]
[368565707,1751211064706,-490.0,0.00022191,2]
[368565708,1751211064715,-490.0,0.00022191,2]
[368565709,1751211064724,-1904.07,0.00022191,2]
[368565710,1751211064733,-490.0,0.00022191,2]
[368565711,1751211064744,-490.0,0.00022191,2]
[368565712,1751211064755,-514.43,0.00022191,2]
[368565713,1751211064764,-490.0,0.00022191,2]
[368565714,1751211064773,-490.0,0.00022191,2]
[368565715,1751211064783,-2937.97,0.00022191,2]
[368565716,1751211064793,-1211.2,0.00022191,2]
[368565717,1751211064802,-771.43,0.00022191,2]
[368565718,1751211064811,-490.0,0.00022191,2]
[368565719,1751211064821,-616.89,0.00022191,2]
[368565720,1751211064831,-3226.3,0.00022191,2]
[368565721,1751211064840,-490.0,0.00022191,2]
[368565722,1751211064850,-490.0,0.00022191,2]
[368565723,1751211064859,-327.57605658,0.00022191,2]
[368565724,1751211064868,-668.02,0.00022191,2]
[368565725,1751211064877,-1851.47,0.00022191,2]
[368565726,1751211064887,-2014.82,0.00022191,2]
[368565727,1751211064896,-490.0,0.00022191,2]
[368565728,1751211064906,-423.49316865,0.00022191,2]
[368565729,1751211064916,-490.0,0.00022191,2]
[368565730,1751211064925,-498.35388604,0.00022191,2]
[368565731,1751211064935,-490.0,0.00022191,2]
[368565732,1751211064945,-5433.56,0.00022191,2]
[368565733,1751211064954,-490.0,0.00022191,2]
[368565734,1751211064964,-490.0,0.00022191,2]
[368565735,1751211064974,-1021.86,0.00022191,2]
[368565736,1751211064984,-490.0,0.00022191,2]
[368565737,1751211064993,-914.75,0.00022191,2]
[368565738,1751211065003,-1454.62,0.00022191,2]
[368565739,1751211065012,-1594.24,0.00022191,2]
[368565740,1751211065022,-490.0,0.00022191,2]
[368565741,1751211065031,-490.0,0.00022191,2]
[368565742,1751211065041,-490.0,0.00022191,2]
[368565743,1751211065050,-2641.12,0.00022191,2]
[368565744,1751211065059,-490.0,0.00022191,2]
[368565745,1751211065069,-490.0,0.00022191,2]
[368565746,1751211065078,-3777.11,0.00022191,2]
[368565747,1751211065087,-490.0,0.00022191,2]
[368565748,1751211065097,-490.0,0.00022191,2]
[368565749,1751211065106,-490.0,0.00022191,2]
[368565750,1751211065115,-803.08,0.00022191,2]
[368565751,1751211065125,-490.0,0.00022191,2]
[368565752,1751211065134,-490.0,0.00022191,2]
[368565753,1751211065143,-822.75,0.00022191,2]
[368565754,1751211065152,-490.0,0.00022191,2]
[368565755,1751211065161,-1452.36,0.00022191,2]
[368565756,1751211065170,-490.0,0.00022191,2]
[368565757,1751211065180,-557.42,0.00022191,2]
[368565758,1751211065189,-490.0,0.00022191,2]
[368565759,1751211065198,-2722.58,0.00022191,2]
[368565760,1751211065208,-490.0,0.00022191,2]
[368565761,1751211065218,-843.31,0.00022191,2]
[368565762,1751211065227,-490.0,0.00022191,2]
[368565763,1751211065236,-490.0,0.00022191,2]
[368565764,1751211065246,-1156.63,0.00022191,2]
[368565765,1751211065256,-748.43,0.00022191,2]
[368565766,1751211065266,-1982.53,0.00022191,2]
[368565767,1751211065275,-575.26,0.00022191,2]
[368565768,1751211065284,-1177.86,0.00022191,2]
[368565769,1751211065294,-490.0,0.00022191,2]
[368565770,1751211065303,-1218.89,0.00022191,2]
[368565771,1751211065313,-989.3,0.00022191,2]
[368565772,1751211065322,-490.0,0.00022191,2]
[368565773,1751211065332,-1685.4,0.00022191,2]
[368565774,1751211065342,-2501.6,0.00022191,2]
[368565775,1751211065351,-1999.11,0.00022191,2]
[368565776,1751211065361,-490.0,0.00022191,2]
[368565777,1751211065371,-490.0,0.00022191,2]
[368565778,1751211065380,-490.0,0.00022191,2]
[368565779,1751211065390,-490.0,0.00022191,2]
[368565780,1751211065399,-1295.95,0.00022191,2]
[368565781,1751211065408,-490.0,0.00022191,2]
[368565782,1751211065417,-2499.68,0.00022191,2]
[368565783,1751211065427,-490.0,0.00022191,2]
[368565784,1751211065437,-1552.76,0.00022191,2]
[368565785,1751211065447,-490.0,0.00022191,2]
[368565786,1751211065456,-490.0,0.00022191,2]
[368565787,1751211065466,-3087.09,0.00022191,2]
[368565788,1751211065475,-2468.13,0.00022191,2]
[368565789,1751211065485,-490.0,0.00022191,2]
[368565790,1751211065494,-490.0,0.00022191,2]
[368565791,1751211065504,-490.0,0.00022191,2]
[368565792,1751211065514,-4351.09,0.00022191,2]
[368565793,1751211065523,-490.0,0.00022191,2]
[368565794,1751211065533,-490.0,0.00022191,2]
[368565795,1751211065543,-490.0,0.00022191,2]
[368565796,1751211065552,-587.89515219,0.00022191,2]
[368565797,1751211065561,-156.026587,0.00022191,2]
[368565798,1751211065570,-1055.2,0.00022191,2]
[368565799,1751211065579,-801.85,0.00022191,2]
[368565800,1751211065589,-556.42,0.00022191,2]
[368565801,1751211065598,-490.0,0.00022191,2]
[368565802,1751211065608,-1784.43,0.00022191,2]
[368565803,1751211065618,-1880.72,0.00022191,2]
[368565804,1751211065627,-2372.16,0.00022191,2]
[368565805,1751211065637,-490.0,0.00022191,2]
[368565806,1751211065646,-1797.76,0.00022191,2]
[368565807,1751211065656,-490.0,0.00022191,2]
[368565808,1751211065665,-872.86,0.00022191,2]
[368565809,1751211065675,-2419.37,0.00022191,2]
[368565810,1751211065684,-3397.85,0.00022191,2]
[368565811,1751211065694,-1178.71,0.00022191,2]
[368565812,1751211065703,-1916.02,0.00022191,2]
[368565813,1751211065713,-826.13,0.00022191,2]
[368565814,1751211065722,-490.0,0.00022191,2]
[368565815,1751211065732,-490.0,0.00022191,2]
[368565816,1751211065741,-1060.19,0.00022191,2]
[368565817,1751211065755,-797.94,0.00022191,2]
[368565818,1751211065764,-605.36,0.00022191,2]
[368565819,1751211065773,-781.63,0.00022191,2]
[368565820,1751211065783,-490.0,0.00022191,2]
[368565821,1751211065792,-350.86,0.00022191,2]
[368565822,1751211065801,-490.0,0.00022191,2]
[368565823,1751211065810,-490.0,0.00022191,2]
[368565824,1751211065819,-622.32,0.00022191,2]
[368565825,1751211065828,-1430.28,0.00022191,2]
[368565826,1751211065837,-490.0,0.00022191,2]
[368565827,1751211065847,-639.51,0.00022191,2]
[368565828,1751211065855,-4781.39,0.00022191,2]
[368565829,1751211065864,-2468.99,0.00022191,2]
[368565830,1751211065874,-1148.75,0.00022191,2]
[368565831,1751211065883,-491.18113545,0.00022191,2]
[368565832,1751211065893,-490.0,0.00022191,2]
[368565833,1751211065903,-1226.27,0.00022191,2]
[368565834,1751211065912,-490.0,0.00022191,2]
[368565835,1751211065922,-490.0,0.00022191,2]
[368565836,1751211065931,-1535.56,0.00022191,2]
[368565837,1751211065940,-490.0,0.00022191,2]
[368565838,1751211065949,-4027.4,0.00022191,2]
[368565839,1751211065958,-2135.32,0.00022191,2]
[368565840,1751211065967,-490.0,0.00022191,2]
[368565841,1751211065977,-505.29,0.00022191,2]
[368565842,1751211065986,-490.0,0.00022191,2]
[368565843,1751211065995,-1714.06,0.00022191,2]
[368565844,1751211066005,-945.72,0.00022191,2]
[368565845,1751211066014,-5686.38,0.00022191,2]
[368565846,1751211066023,-9013.6,0.00022191,2]
[368565847,1751211066032,-490.0,0.00022191,2]
[368565848,1751211066041,-490.0,0.00022191,2]
[368565849,1751211066051,-490.0,0.00022191,2]
[368565850,1751211066060,-3159.9,0.00022191,2]
[368565851,1751211066069,-490.0,0.00022191,2]
[368565852,1751211066079,-605.34,0.00022191,2]
[368565853,1751211066089,-1185.31,0.00022191,2]
[368565854,1751211066098,-490.0,0.00022191,2]
[368565855,1751211066107,-3828.33,0.00022191,2]
[368565856,1751211066117,-573.25,0.00022191,2]
[368565857,1751211066126,-1016.59,0.00022191,2]
[368565858,1751211066136,-490.0,0.00022191,2]
[368565859,1751211066145,-490.0,0.00022191,2]
[368565860,1751211066155,-490.0,0.00022191,2]
[368565861,1751211066165,-490.0,0.00022191,2]
[368565862,1751211066175,-490.0,0.00022191,2]
[368565863,1751211066184,-490.0,0.00022191,2]
[368565864,1751211066193,-490.0,0.00022191,2]
[368565865,1751211066202,-490.0,0.00022191,2]
[368565866,1751211066211,-490.0,0.00022191,2]
[368565867,1751211066221,-490.0,0.00022191,2]
[368565868,1751211066230,-1646.36,0.00022191,2]
[368565869,1751211066240,-490.0,0.00022191,2]
[368565870,1751211066249,-490.0,0.00022191,2]
[368565871,1751211066260,-490.0,0.00022191,2]
[368565872,1751211066269,-1297.88,0.00022191,2]
[368565873,1751211066279,-490.0,0.00022191,2]
[368565874,1751211066288,-1213.36,0.00022191,2]
[368565875,1751211066297,-6445.12,0.00022191,2]
[368565876,1751211066306,-490.0,0.00022191,2]
[368565877,1751211066316,-12299.33,0.00022191,2]
[368565878,1751211066325,-9307.13,0.00022191,2]
[368565879,1751211066334,-811.58,0.00022191,2]
[368565880,1751211066344,-532.01,0.00022191,2]
[368565881,1751211066353,-1486.82,0.00022191,2]
[368565882,1751211066362,-1468.35,0.00022191,2]
[368565883,1751211066371,-490.0,0.00022191,2]
[368565884,1751211066381,-490.0,0.00022191,2]
[368565885,1751211066390,-490.0,0.00022191,2]
[368565886,1751211066399,-5534.48,0.00022191,2]
[368565887,1751211066409,-1272.5,0.00022191,2]
[368565888,1751211066418,-490.0,0.00022191,2]
[368565889,1751211066428,-490.0,0.00022191,2]
[368565890,1751211066437,-490.0,0.00022191,2]
[368565891,1751211066447,-490.0,0.00022191,2]
[368565892,1751211066456,-1643.19,0.00022191,2]
[368565893,1751211066466,-490.0,0.00022191,2]
[368565894,1751211066476,-1003.52,0.00022191,2]
[368565895,1751211066486,-490.0,0.00022191,2]
[368565896,1751211066495,-490.0,0.00022191,2]
[368565897,1751211066506,-2932.47,0.00022191,2]
[368565898,1751211066515,-1171.62,0.00022191,2]
[368565899,1751211066524,-954.45,0.00022191,2]
[368565900,1751211066534,-853.08,0.00022191,2]
[368565901,1751211066543,-490.0,0.00022191,2]
[368565902,1751211066553,-490.0,0.00022191,2]
[368565903,1751211066562,-490.0,0.00022191,2]
[368565904,1751211066571,-490.0,0.00022191,2]
[368565905,1751211066755,-775.6,0.00022191,2]
[368565906,1751211066766,-2111.5,0.00022191,2]
[368565907,1751211066775,-10377.23,0.00022191,2]
[368565908,1751211066786,-165.39975264,0.00022191,2]
[368565909,1751211066795,-490.0,0.00022191,2]
[368565910,1751211066804,-490.0,0.00022191,2]
[368565911,1751211066814,-490.0,0.00022191,2]
[368565912,1751211066825,-1617.61,0.00022191,2]
[368565913,1751211066835,-2682.86,0.00022191,2]
[368565914,1751211066844,-1155.5,0.00022191,2]
[368565915,1751211066853,-2234.87,0.00022191,2]
[368565916,1751211066863,-1352.95,0.00022191,2]
[368565917,1751211066872,-1867.58,0.00022191,2]
[368565918,1751211066881,-1385.57,0.00022191,2]
[368565919,1751211066891,-2708.06,0.00022191,2]
[368565920,1751211066900,-490.0,0.00022191,2]
[368565921,1751211066910,-1907.99,0.00022191,2]
[368565922,1751211066919,-490.0,0.00022191,2]
[368565923,1751211066928,-490.0,0.00022191,2]
[368565924,1751211066938,-983.5,0.00022191,2]
[368565925,1751211066948,-6166.11,0.00022191,2]
[368565926,1751211066957,-707.35,0.00022191,2]
[368565927,1751211066966,-490.0,0.00022191,2]
[368565928,1751211066976,-395.95041859,0.00022191,2]
[368565929,1751211066985,-1301.29,0.00022191,2]
[368565930,1751211066994,-490.0,0.00022191,2]
[368565931,1751211067004,-1770.98,0.00022191,2]
[368565932,1751211067013,-490.0,0.00022191,2]
[368565933,1751211067022,-490.0,0.00022191,2]
[368565934,1751211067031,-1776.22,0.00022191,2]
[368565935,1751211067040,-1094.83,0.00022191,2]
[368565936,1751211067049,-3987.34,0.00022191,2]
[368565937,1751211067058,-989.15,0.00022191,2]
[368565938,1751211067067,-490.0,0.00022191,2]
[368565939,1751211067076,-2538.6,0.00022191,2]
[368565940,1751211067086,-1494.89,0.00022191,2]
[368565941,1751211067095,-490.0,0.00022191,2]
[368565942,1751211067104,-490.0,0.00022191,2]
[368565943,1751211067113,-181615.48,0.00022191,2]
[368565944,1751211067122,-490.0,0.00022191,2]
[368565945,1751211067130,-490.0,0.00022191,2]
[368565946,1751211067139,-565.41,0.00022191,2]
[368565947,1751211067148,-490.0,0.00022191,2]
[368565948,1751211067158,-545.63,0.00022191,2]
[368565949,1751211067167,-490.0,0.00022191,2]
[368565950,1751211067176,-1196.17,0.00022191,2]
[368565951,1751211067185,-628.92,0.00022191,2]
[368565952,1751211067195,-7898.34,0.00022191,2]
[368565953,1751211067204,-490.0,0.00022191,2]
[368565954,1751211067213,-1786.84,0.00022191,2]
[368565955,1751211067222,-490.0,0.00022191,2]
[368565956,1751211067232,-1796.1,0.00022191,2]
[368565957,1751211067241,-2405.43,0.00022191,2]
[368565958,1751211067251,-517.97,0.00022191,2]
[368565959,1751211067260,-629.02,0.00022191,2]
[368565960,1751211067270,-490.0,0.00022191,2]
[368565961,1751211067279,-490.0,0.00022191,2]
[368565962,1751211067288,-490.0,0.00022191,2]
[368565963,1751211067297,-2802.1,0.00022191,2]
[368565964,1751211067306,-154.793791,0.00022191,2]
[368565965,1751211067316,-490.0,0.00022191,2]
[368565966,1751211067325,-4737.29,0.00022191,2]
[368565967,1751211067334,-490.0,0.00022191,2]
[368565968,1751211067343,-1979.38,0.00022191,2]
[368565969,1751211067352,-2520.54,0.00022191,2]
[368565970,1751211067361,-490.0,0.00022191,2]
[368565971,1751211067371,-490.0,0.00022191,2]
[368565972,1751211067379,-490.0,0.00022191,2]
[368565973,1751211067388,-3032.18,0.00022191,2]
[368565974,1751211067398,-2919.02,0.00022191,2]
[368565975,1751211067407,-1097.25,0.00022191,2]
[368565976,1751211067416,-490.0,0.00022191,2]
[368565977,1751211067425,-1375.55,0.00022191,2]
[368565978,1751211067435,-490.0,0.00022191,2]
[368565979,1751211067444,-372.51,0.00022191,2]
[368565980,1751211067453,-490.0,0.00022191,2]
[368565981,1751211067463,-2684.84,0.00022191,2]
[368565982,1751211067472,-490.0,0.00022191,2]
[368565983,1751211067481,-1737.62,0.00022191,2]
[368565984,1751211067491,-490.0,0.00022191,2]
[368565985,1751211067500,-490.0,0.00022191,2]
[368565986,1751211067510,-490.0,0.00022191,2]
[368565987,1751211067519,-490.0,0.00022191,2]
[368565988,1751211067528,-2128.97,0.00022191,2]
[368565989,1751211067538,-1737.89,0.00022191,2]
[368565990,1751211067547,-1660.65,0.00022191,2]
[368565991,1751211067557,-490.0,0.00022191,2]
[368565992,1751211067566,-490.0,0.00022191,2]
[368565993,1751211067575,-490.0,0.00022191,2]
[368565994,1751211067585,-1978.26,0.00022191,2]
[368565995,1751211067594,-470.14,0.00022191,2]
[368565996,1751211067604,-490.0,0.00022191,2]
[368565997,1751211067613,-1834.07,0.00022191,2]
[368565998,1751211067622,-1825.71,0.00022191,2]
[368565999,1751211067632,-490.0,0.00022191,2]
[368566000,1751211067641,-2355.23,0.00022191,2]
[368566001,1751211067651,-490.0,0.00022191,2]
[368566002,1751211067660,-2299.33,0.00022191,2]
[368566003,1751211067670,-1831.76,0.00022191,2]
[368566004,1751211067679,-333.19844636,0.00022191,2]
[368566005,1751211067689,-1295.1,0.00022191,2]
[368566006,1751211067700,-490.0,0.00022191,2]
[368566007,1751211067709,-490.0,0.00022191,2]
[368566008,1751211067719,-1956.87,0.00022191,2]
[368566009,1751211067729,-490.0,0.00022191,2]
[368566010,1751211067739,-490.0,0.00022191,2]
[368566011,1751211067753,-13147.33,0.00022191,2]
[368566012,1751211067763,-3322.26,0.00022191,2]
[368566013,1751211067772,-530.43,0.00022191,2]
[368566014,1751211067782,-1787.04,0.00022191,2]
[368566015,1751211067791,-490.0,0.00022191,2]
[368566016,1751211067800,-1840.52,0.00022191,2]
[368566017,1751211067810,-286.7,0.00022191,2]
[368566018,1751211067819,-610.34,0.00022191,2]
[368566019,1751211067829,-1237.15,0.00022191,2]
[368566020,1751211067838,-5071.49,0.00022191,2]
[368566021,1751211067847,-1035.84,0.00022191,2]
[368566022,1751211067857,-490.0,0.00022191,2]
[368566023,1751211067866,-490.0,0.00022191,2]
[368566024,1751211067875,-1622.36,0.00022191,2]
[368566025,1751211067884,-3074.69,0.00022191,2]
[368566026,1751211067893,-810.45,0.00022191,2]
[368566027,1751211067903,-1066.64,0.00022191,2]
[368566028,1751211067921,-1378.68,0.00022191,2]
[368566029,1751211067936,-490.0,0.00022191,2]
[368566030,1751211067956,-2391.83,0.00022191,2]
[368566031,1751211067974,-3666.75,0.00022191,2]
[368566032,1751211067988,-490.0,0.00022191,2]
[368566033,1751211068006,-2790.46,0.00022191,2]
[368566034,1751211068024,-490.0,0.00022191,2]
[368566035,1751211068043,-2645.87,0.00022191,2]
[368566036,1751211068061,-490.0,0.00022191,2]
[368566037,1751211068077,-490.0,0.00022191,2]
[368566038,1751211068094,-490.0,0.00022191,2]
[368566039,1751211068108,-577.61,0.00022191,2]
[368566040,1751211068126,-1189.41,0.00022191,2]
[368566041,1751211068138,-490.0,0.00022191,2]
[368566042,1751211068155,-3233.52,0.00022191,2]
[368566043,1751211068168,-4555.68,0.00022191,2]
[368566044,1751211068185,-517.42971948,0.00022191,2]
[368566045,1751211068199,-1056.38,0.00022191,2]
[368566046,1751211068214,-1602.64,0.00022191,2]
[368566047,1751211068229,-699.6,0.00022191,2]
[368566048,1751211068244,-13409.15,0.00022191,2]
[368566049,1751211068259,-504.25627818,0.00022191,2]
[368566050,1751211068274,-4995.65,0.00022191,2]
[368566051,1751211068290,-4171.02,0.00022191,2]
[368566052,1751211068306,-2404.41,0.00022191,2]
[368566053,1751211068320,-895.46,0.00022191,2]
[368566054,1751211068335,-490.0,0.00022191,2]
[368566055,1751211068350,-1015.76,0.00022191,2]
[368566056,1751211068364,-490.0,0.00022191,2]
[368566057,1751211068379,-2744.79,0.00022191,2]
[368566058,1751211068393,-490.0,0.00022191,2]
[368566059,1751211068408,-490.0,0.00022191,2]
[368566060,1751211068422,-490.0,0.00022191,2]
[368566061,1751211068437,-490.0,0.00022191,2]
[368566062,1751211068452,-1558.12,0.00022191,2]
[368566063,1751211068466,-490.0,0.00022191,2]
[368566064,1751211068482,-2847.18,0.00022191,2]
[368566065,1751211068497,-8167.94,0.00022191,2]
[368566066,1751211068512,-2093.22,0.00022191,2]
[368566067,1751211068527,-2781.52,0.00022191,2]
[368566068,1751211068542,-5779.78,0.00022191,2]
[368566069,1751211068557,-490.0,0.00022191,2]
[368566070,1751211068572,-490.0,0.00022191,2]
[368566071,1751211068587,-583.37,0.00022191,2]
[368566072,1751211068602,-490.0,0.00022191,2]
[368566073,1751211068617,-2771.85,0.00022191,2]
[368566074,1751211068637,-2767.34,0.00022191,2]
[368566075,1751211068652,-490.0,0.00022191,2]
[368566076,1751211068667,-490.0,0.00022191,2]
[368566077,1751211068681,-2831.56,0.00022191,2]
[368566078,1751211068696,-3393.47,0.00022191,2]
[368566079,1751211068712,-1899.5,0.00022191,2]
[368566080,1751211068726,-2326.3,0.00022191,2]
[368566081,1751211068742,-1117.89,0.00022191,2]
[368566082,1751211068761,-2854.25,0.00022191,2]
[368566083,1751211068776,-3832.69,0.00022191,2]
[368566084,1751211068791,-490.0,0.00022191,2]
[368566085,1751211068806,-1878.43,0.00022191,2]
[368566086,1751211068823,-854.35,0.00022191,2]
[368566087,1751211068840,-492.47393887,0.00022191,2]
[368566088,1751211068855,-490.0,0.00022191,2]
[368566089,1751211068870,-490.0,0.00022191,2]
[368566090,1751211068884,-1907.82,0.00022191,2]
[368566091,1751211068899,-1750.27,0.00022191,2]
[368566092,1751211068913,-490.0,0.00022191,2]
[368566093,1751211068928,-1368.32,0.00022191,2]
[368566094,1751211068943,-490.0,0.00022191,2]
[368566095,1751211068958,-2411.06,0.00022191,2]
[368566096,1751211068974,-490.0,0.00022191,2]
[368566097,1751211068989,-490.0,0.00022191,2]
[368566098,1751211069004,-490.0,0.00022191,2]
[368566099,1751211069019,-1171.3,0.00022191,2]
[368566100,1751211069035,-490.0,0.00022191,2]
[368566101,1751211069051,-1054.38,0.00022191,2]
[368566102,1751211069066,-490.0,0.00022191,2]
[368566103,1751211069081,-490.0,0.00022191,2]
[368566104,1751211069097,-2333.94,0.00022191,2]
[368566105,1751211069112,-4525.85,0.00022191,2]
[368566106,1751211069127,-2508.97,0.00022191,2]
[368566107,1751211069142,-7646.03,0.00022191,2]
[368566108,1751211069157,-490.0,0.00022191,2]
[368566109,1751211069171,-3392.78,0.00022191,2]
[368566110,1751211069185,-490.0,0.00022191,2]
[368566111,1751211069201,-357.93138043,0.00022191,2]
[368566112,1751211069216,-1731.16,0.00022191,2]
[368566113,1751211069231,-555.23,0.00022191,2]
[368566114,1751211069246,-5227.22,0.00022191,2]
[368566115,1751211069262,-490.0,0.00022191,2]
[368566116,1751211069277,-1346.89,0.00022191,2]
[368566117,1751211069292,-494.28,0.00022191,2]
[368566118,1751211069306,-2732.69,0.00022191,2]
[368566119,1751211069322,-1621.23,0.00022191,2]
[368566120,1751211069337,-490.0,0.00022191,2]
[368566121,1751211069352,-1330.81,0.00022191,2]
[368566122,1751211069368,-490.0,0.00022191,2]
[368566123,1751211069383,-1030.11,0.00022191,2]
[368566124,1751211069398,-4226.05,0.00022191,2]
[368566125,1751211069412,-2744.57,0.00022191,2]
[368566126,1751211069428,-2420.76,0.00022191,2]
[368566127,1751211069443,-490.0,0.00022191,2]
[368566128,1751211069458,-652.25,0.00022191,2]
[368566129,1751211069473,-490.0,0.00022191,2]
[368566130,1751211069490,-490.0,0.00022191,2]